[Event "Titled Tuesday Blitz January 11 2022"]
[White "Pinheiro, Iung Alicio de O."]
[Black "Krivonosov, Oleg"]
[WhiteFideId "2104350"]
[BlackFideId "11600349"]
[WhiteElo "2600"]
[BlackElo "2455"]
[Result "1-0"]
[Round "07"]
[TimeControl "180+1"]
[Date "2022.01.11"]
[WhiteClock "0:00:11"]
[BlackClock "0:00:01"]

1. d4 {[%clk 0:03:00]}  d5 {[%clk 0:02:59]} 2. c4 {[%clk 0:03:00]}  e6 {[%clk 0:02:59]} 3. Nc3 {[%clk 0:03:00]}  Be7 {[%clk 0:02:58]} 4. cxd5 {[%clk 0:02:59]}  exd5 {[%clk 0:02:57]} 5. Bf4 {[%clk 0:03:00]}  Nf6 {[%clk 0:02:57]} 6. e3 {[%clk 0:03:00]}  O-O {[%clk 0:02:57]} 7. Nf3 {[%clk 0:02:50]}  c5 {[%clk 0:02:57]} 8. dxc5 {[%clk 0:02:43]}  Bxc5 {[%clk 0:02:56]} 9. Be2 {[%clk 0:02:44]}  Nc6 {[%clk 0:02:56]} 10. O-O {[%clk 0:02:42]}  a6 {[%clk 0:02:55]} 11. Ne5 {[%clk 0:02:38]}  Nxe5 {[%clk 0:02:52]} 12. Bxe5 {[%clk 0:02:39]}  Be6 {[%clk 0:02:52]} 13. Rc1 {[%clk 0:02:38]}  Be7 {[%clk 0:02:51]} 14. Qd4 {[%clk 0:02:32]}  Rc8 {[%clk 0:02:49]} 15. Rfd1 {[%clk 0:02:31]}  Qa5 {[%clk 0:02:47]} 16. a3 {[%clk 0:02:29]}  Bc5 {[%clk 0:02:43]} 17. Qh4 {[%clk 0:02:27]}  Be7 {[%clk 0:02:43]} 18. Qg3 {[%clk 0:02:25]}  Rfd8 {[%clk 0:02:33]} 19. Bd4 {[%clk 0:02:19]}  Qc7 {[%clk 0:02:25]} 20. Nxd5 {[%clk 0:01:34]}  Qxg3 {[%clk 0:02:13]} 21. Nxe7+ {[%clk 0:01:32]}  Kf8 {[%clk 0:02:13]} 22. hxg3 {[%clk 0:01:31]}  Kxe7 {[%clk 0:02:13]} 23. Bf3 {[%clk 0:01:14]}  Rxc1 {[%clk 0:01:45]} 24. Rxc1 {[%clk 0:01:13]}  Rd7 {[%clk 0:01:30]} 25. b4 {[%clk 0:01:01]}  Bd5 {[%clk 0:01:22]} 26. Be2 {[%clk 0:00:48]}  Ke6 {[%clk 0:01:15]} 27. f3 {[%clk 0:00:47]}  h5 {[%clk 0:01:10]} 28. Kf2 {[%clk 0:00:46]}  Ne8 {[%clk 0:01:05]} 29. Bb2 {[%clk 0:00:39]}  f6 {[%clk 0:01:01]} 30. e4 {[%clk 0:00:39]}  Bb3 {[%clk 0:00:57]} 31. Ke3 {[%clk 0:00:38]}  Ba4 {[%clk 0:00:53]} 32. Bc4+ {[%clk 0:00:38]}  Ke7 {[%clk 0:00:52]} 33. Bd5 {[%clk 0:00:38]}  Nd6 {[%clk 0:00:45]} 34. Bd4 {[%clk 0:00:38]}  Nb5 {[%clk 0:00:37]} 35. Bb2 {[%clk 0:00:34]}  Nd6 {[%clk 0:00:32]} 36. Rh1 {[%clk 0:00:33]}  Bc6 {[%clk 0:00:26]} 37. Ba2 {[%clk 0:00:27]}  Bb5 {[%clk 0:00:20]} 38. Rc1 {[%clk 0:00:17]}  Bc6 {[%clk 0:00:18]} 39. Bb3 {[%clk 0:00:17]}  Rc7 {[%clk 0:00:13]} 40. Rh1 {[%clk 0:00:16]}  Bb5 {[%clk 0:00:13]} 41. Bd4 {[%clk 0:00:14]}  Nc4+ {[%clk 0:00:11]} 42. Kf2 {[%clk 0:00:15]}  Ne5 {[%clk 0:00:10]} 43. Bc5+ {[%clk 0:00:15]}  Ke8 {[%clk 0:00:09]} 44. Ke3 {[%clk 0:00:15]}  b6 {[%clk 0:00:08]} 45. Bd4 {[%clk 0:00:10]}  Nc4+ {[%clk 0:00:08]} 46. Kf4 {[%clk 0:00:09]}  Nd2 {[%clk 0:00:07]} 47. Bd5 {[%clk 0:00:07]}  Rc2 {[%clk 0:00:07]} 48. Rxh5 {[%clk 0:00:07]}  Nc4 {[%clk 0:00:04]} 49. Rh8+ {[%clk 0:00:07]}  Kd7 {[%clk 0:00:04]} 50. Rg8 {[%clk 0:00:07]}  g5+ {[%clk 0:00:03]} 51. Kf5 {[%clk 0:00:08]}  Nd6+ {[%clk 0:00:03]} 52. Kxf6 {[%clk 0:00:08]}  Rxg2 {[%clk 0:00:02]} 53. Rg7+ {[%clk 0:00:08]}  Kd8 {[%clk 0:00:02]} 54. g4 {[%clk 0:00:09]}  Ne8+ {[%clk 0:00:02]} 55. Kg6 {[%clk 0:00:09]}  Nxg7 {[%clk 0:00:02]} 56. Bxg7 {[%clk 0:00:09]}  Be2 {[%clk 0:00:02]} 57. Bf6+ {[%clk 0:00:10]}  Kd7 {[%clk 0:00:01]} 58. e5 {[%clk 0:00:11]} 1-0


[Site "https://www.chess.com"]

[Event "Titled Tuesday Blitz January 11 2022"]
[White "Rasulov, Vugar"]
[Black "Zelbel, Patrick"]
[WhiteFideId "13402390"]
[BlackFideId "24624322"]
[WhiteElo "2560"]
[BlackElo "2493"]
[Result "1-0"]
[Round "07"]
[TimeControl "180+1"]
[Date "2022.01.11"]
[WhiteClock "0:00:58"]
[BlackClock "0:00:18"]

1. d4 {[%clk 0:03:00]}  Nf6 {[%clk 0:02:58]} 2. c4 {[%clk 0:03:01]}  c5 {[%clk 0:02:58]} 3. d5 {[%clk 0:03:00]}  e6 {[%clk 0:02:59]} 4. Nc3 {[%clk 0:03:00]}  exd5 {[%clk 0:02:59]} 5. cxd5 {[%clk 0:03:01]}  d6 {[%clk 0:02:59]} 6. e4 {[%clk 0:03:01]}  g6 {[%clk 0:02:59]} 7. f4 {[%clk 0:03:01]}  Bg7 {[%clk 0:02:59]} 8. Bb5+ {[%clk 0:03:00]}  Nfd7 {[%clk 0:02:58]} 9. a4 {[%clk 0:03:00]}  Qh4+ {[%clk 0:02:57]} 10. g3 {[%clk 0:03:00]}  Qd8 {[%clk 0:02:57]} 11. Nf3 {[%clk 0:03:01]}  O-O {[%clk 0:02:56]} 12. O-O {[%clk 0:03:01]}  Na6 {[%clk 0:02:42]} 13. f5 {[%clk 0:02:55]}  Nf6 {[%clk 0:02:26]} 14. Bg5 {[%clk 0:02:47]}  h6 {[%clk 0:02:23]} 15. Bc1 {[%clk 0:02:42]}  Nb4 {[%clk 0:02:17]} 16. fxg6 {[%clk 0:02:32]}  fxg6 {[%clk 0:02:18]} 17. e5 {[%clk 0:02:31]}  dxe5 {[%clk 0:02:16]} 18. Nxe5 {[%clk 0:02:32]}  Bf5 {[%clk 0:02:11]} 19. d6 {[%clk 0:02:26]}  Kh7 {[%clk 0:02:06]} 20. g4 {[%clk 0:02:07]}  Bc2 {[%clk 0:02:00]} 21. Qd2 {[%clk 0:02:03]}  a6 {[%clk 0:01:58]} 22. Bc4 {[%clk 0:01:59]}  Nd7 {[%clk 0:01:49]} 23. Rxf8 {[%clk 0:01:51]}  Nxf8 {[%clk 0:01:50]} 24. Qf4 {[%clk 0:01:44]}  Qxd6 {[%clk 0:01:41]} 25. Nf3 {[%clk 0:01:40]}  Rd8 {[%clk 0:01:29]} 26. Qxd6 {[%clk 0:01:36]}  Rxd6 {[%clk 0:01:30]} 27. Be3 {[%clk 0:01:36]}  Nd7 {[%clk 0:01:24]} 28. a5 {[%clk 0:01:33]}  Bd3 {[%clk 0:01:11]} 29. Rd1 {[%clk 0:01:29]}  Rf6 {[%clk 0:01:07]} 30. Bxd3 {[%clk 0:01:06]}  Rxf3 {[%clk 0:01:06]} 31. Be4 {[%clk 0:01:06]}  Rxe3 {[%clk 0:00:42]} 32. Rxd7 {[%clk 0:01:06]}  Na2 {[%clk 0:00:37]} 33. Kf2 {[%clk 0:01:00]}  Rxc3 {[%clk 0:00:29]} 34. bxc3 {[%clk 0:01:00]}  Nxc3 {[%clk 0:00:30]} 35. Bxb7 {[%clk 0:00:59]}  Kg8 {[%clk 0:00:19]} 36. Bxa6 {[%clk 0:00:58]}  Bd4+ {[%clk 0:00:20]} 37. Kf3 {[%clk 0:00:58]}  Na2 {[%clk 0:00:18]} 38. Bc4+ {[%clk 0:00:58]} 1-0


[Site "https://www.chess.com"]

[Event "Titled Tuesday Blitz January 11 2022"]
[White "Sadhwani, Raunak"]
[Black "Jones, Gawain C B"]
[WhiteFideId "35093487"]
[BlackFideId "409561"]
[WhiteElo "2616"]
[BlackElo "2657"]
[Result "1-0"]
[Round "07"]
[TimeControl "180+1"]
[Date "2022.01.11"]
[WhiteClock "0:00:59"]
[BlackClock "0:01:04"]

1. d4 {[%clk 0:03:00]}  Nf6 {[%clk 0:02:59]} 2. Nf3 {[%clk 0:03:01]}  g6 {[%clk 0:03:00]} 3. Nc3 {[%clk 0:03:02]}  d5 {[%clk 0:03:00]} 4. Bf4 {[%clk 0:03:01]}  Bg7 {[%clk 0:03:00]} 5. Nb5 {[%clk 0:03:02]}  Na6 {[%clk 0:02:59]} 6. e3 {[%clk 0:03:02]}  O-O {[%clk 0:02:59]} 7. Be2 {[%clk 0:02:59]}  Nh5 {[%clk 0:02:56]} 8. Bg5 {[%clk 0:02:59]}  f6 {[%clk 0:02:54]} 9. Bh4 {[%clk 0:02:58]}  g5 {[%clk 0:02:53]} 10. Bg3 {[%clk 0:02:55]}  c6 {[%clk 0:02:52]} 11. Nc3 {[%clk 0:02:55]}  Nxg3 {[%clk 0:02:52]} 12. hxg3 {[%clk 0:02:55]}  e5 {[%clk 0:02:51]} 13. Qd2 {[%clk 0:02:11]}  Nc7 {[%clk 0:02:34]} 14. O-O-O {[%clk 0:02:10]}  e4 {[%clk 0:02:20]} 15. Ng1 {[%clk 0:02:00]}  f5 {[%clk 0:02:19]} 16. f3 {[%clk 0:01:58]}  b5 {[%clk 0:02:11]} 17. g4 {[%clk 0:01:59]}  fxg4 {[%clk 0:01:59]} 18. fxe4 {[%clk 0:01:58]}  b4 {[%clk 0:01:59]} 19. Na4 {[%clk 0:01:58]}  dxe4 {[%clk 0:02:00]} 20. Nc5 {[%clk 0:01:59]}  Nd5 {[%clk 0:01:51]} 21. Nxe4 {[%clk 0:01:52]}  Re8 {[%clk 0:01:46]} 22. Bd3 {[%clk 0:01:50]}  Bf5 {[%clk 0:01:46]} 23. Ng3 {[%clk 0:01:43]}  Bxd3 {[%clk 0:01:42]} 24. Qxd3 {[%clk 0:01:44]}  h6 {[%clk 0:01:38]} 25. Nf5 {[%clk 0:01:42]}  Qf6 {[%clk 0:01:32]} 26. Ne2 {[%clk 0:01:38]}  Nxe3 {[%clk 0:01:22]} 27. Nxe3 {[%clk 0:01:39]}  Qf2 {[%clk 0:01:21]} 28. Nxg4 {[%clk 0:01:08]}  Qxe2 {[%clk 0:01:21]} 29. Nxh6+ {[%clk 0:01:06]}  Bxh6 {[%clk 0:01:09]} 30. Qg6+ {[%clk 0:01:05]}  Bg7 {[%clk 0:01:09]} 31. Qh7+ {[%clk 0:01:03]}  Kf7 {[%clk 0:01:04]} 32. Rhf1+ {[%clk 0:01:02]}  Ke6 {[%clk 0:01:04]} 33. Rfe1 {[%clk 0:00:59]} 1-0


[Site "https://www.chess.com"]

[Event "Titled Tuesday Blitz January 11 2022"]
[White "Salimova, Nurgyul"]
[Black "Shkapenko, Pavel"]
[WhiteFideId "2915138"]
[BlackFideId "4151933"]
[WhiteElo "2185"]
[BlackElo "2386"]
[Result "1-0"]
[Round "07"]
[TimeControl "180+1"]
[Date "2022.01.11"]
[WhiteClock "0:00:08"]
[BlackClock "0:00:16"]

1. d4 {[%clk 0:03:00]}  Nf6 {[%clk 0:02:59]} 2. Nc3 {[%clk 0:02:57]}  e6 {[%clk 0:02:59]} 3. e4 {[%clk 0:02:56]}  d5 {[%clk 0:03:00]} 4. Bg5 {[%clk 0:02:54]}  Be7 {[%clk 0:02:58]} 5. e5 {[%clk 0:02:51]}  Nfd7 {[%clk 0:02:58]} 6. h4 {[%clk 0:02:52]}  c5 {[%clk 0:02:51]} 7. Bxe7 {[%clk 0:02:40]}  Qxe7 {[%clk 0:02:49]} 8. Nb5 {[%clk 0:02:40]}  O-O {[%clk 0:02:36]} 9. Nc7 {[%clk 0:02:38]}  cxd4 {[%clk 0:02:37]} 10. Nxa8 {[%clk 0:02:38]}  Nxe5 {[%clk 0:02:37]} 11. Qxd4 {[%clk 0:02:34]}  Nbc6 {[%clk 0:02:37]} 12. Qd2 {[%clk 0:02:32]}  b6 {[%clk 0:02:37]} 13. f4 {[%clk 0:02:08]}  Ng4 {[%clk 0:02:30]} 14. Bb5 {[%clk 0:01:38]}  Bb7 {[%clk 0:02:25]} 15. Nf3 {[%clk 0:01:38]}  Rxa8 {[%clk 0:02:19]} 16. O-O-O {[%clk 0:01:37]}  Nf6 {[%clk 0:02:16]} 17. Bd3 {[%clk 0:01:32]}  Rc8 {[%clk 0:02:05]} 18. Kb1 {[%clk 0:01:32]}  Nb4 {[%clk 0:01:32]} 19. Ne5 {[%clk 0:01:29]}  Ba6 {[%clk 0:01:22]} 20. g4 {[%clk 0:01:22]}  Bxd3 {[%clk 0:01:13]} 21. cxd3 {[%clk 0:01:23]}  Rc2 {[%clk 0:01:13]} 22. Qe3 {[%clk 0:01:16]}  Rg2 {[%clk 0:00:49]} 23. Rc1 {[%clk 0:01:14]}  Qf8 {[%clk 0:00:39]} 24. g5 {[%clk 0:01:09]}  Ng4 {[%clk 0:00:36]} 25. Nxg4 {[%clk 0:01:05]}  Rxg4 {[%clk 0:00:37]} 26. Qf3 {[%clk 0:00:57]}  h5 {[%clk 0:00:37]} 27. gxh6 {[%clk 0:00:56]}  Rg6 {[%clk 0:00:37]} 28. hxg7 {[%clk 0:00:53]}  Qxg7 {[%clk 0:00:37]} 29. Qh5 {[%clk 0:00:40]}  Kf8 {[%clk 0:00:31]} 30. Rc8+ {[%clk 0:00:37]}  Ke7 {[%clk 0:00:31]} 31. Qe5 {[%clk 0:00:20]}  Qxe5 {[%clk 0:00:29]} 32. fxe5 {[%clk 0:00:20]}  Nxd3 {[%clk 0:00:30]} 33. h5 {[%clk 0:00:20]}  Rh6 {[%clk 0:00:30]} 34. Rc7+ {[%clk 0:00:17]}  Kf8 {[%clk 0:00:30]} 35. Rxa7 {[%clk 0:00:16]}  Nxe5 {[%clk 0:00:30]} 36. Rb7 {[%clk 0:00:16]}  Ng4 {[%clk 0:00:19]} 37. Rxb6 {[%clk 0:00:15]}  Nf2 {[%clk 0:00:19]} 38. Rh2 {[%clk 0:00:15]}  Ng4 {[%clk 0:00:19]} 39. Rh4 {[%clk 0:00:15]}  f5 {[%clk 0:00:18]} 40. a4 {[%clk 0:00:14]}  d4 {[%clk 0:00:18]} 41. a5 {[%clk 0:00:14]}  d3 {[%clk 0:00:19]} 42. a6 {[%clk 0:00:12]}  d2 {[%clk 0:00:19]} 43. Rd6 {[%clk 0:00:12]}  Ke7 {[%clk 0:00:17]} 44. Rxd2 {[%clk 0:00:11]}  Rh8 {[%clk 0:00:17]} 45. b4 {[%clk 0:00:09]}  Rb8 {[%clk 0:00:16]} 46. Rb2 {[%clk 0:00:08]}  Nh6 {[%clk 0:00:16]} 47. b5 {[%clk 0:00:07]}  Kd6 {[%clk 0:00:16]} 48. a7 {[%clk 0:00:08]} 1-0


[Site "https://www.chess.com"]

[Event "Titled Tuesday Blitz January 11 2022"]
[White "Sanal, Vahap"]
[Black "Yeletsky, Ivan"]
[WhiteFideId "6300545"]
[BlackFideId "24180327"]
[WhiteElo "2603"]
[BlackElo "2348"]
[Result "1-0"]
[Round "07"]
[TimeControl "180+1"]
[Date "2022.01.11"]
[WhiteClock "0:01:48"]
[BlackClock "0:01:20"]

1. e4 {[%clk 0:03:00]}  Nc6 {[%clk 0:02:57]} 2. d4 {[%clk 0:03:00]}  d6 {[%clk 0:02:57]} 3. Nc3 {[%clk 0:02:57]}  Nf6 {[%clk 0:02:57]} 4. Nf3 {[%clk 0:02:57]}  g6 {[%clk 0:02:57]} 5. h3 {[%clk 0:02:57]}  Bg7 {[%clk 0:02:57]} 6. d5 {[%clk 0:02:58]}  Nb8 {[%clk 0:02:57]} 7. Bc4 {[%clk 0:02:58]}  O-O {[%clk 0:02:57]} 8. O-O {[%clk 0:02:58]}  c6 {[%clk 0:02:57]} 9. a4 {[%clk 0:02:57]}  b6 {[%clk 0:02:48]} 10. Re1 {[%clk 0:02:55]}  Bb7 {[%clk 0:02:42]} 11. Bg5 {[%clk 0:02:53]}  h6 {[%clk 0:02:37]} 12. Bf4 {[%clk 0:02:53]}  a6 {[%clk 0:02:37]} 13. Bb3 {[%clk 0:02:47]}  Nbd7 {[%clk 0:02:25]} 14. Bh2 {[%clk 0:02:23]}  Nc5 {[%clk 0:02:06]} 15. Ba2 {[%clk 0:02:22]}  b5 {[%clk 0:02:06]} 16. dxc6 {[%clk 0:02:05]}  Bxc6 {[%clk 0:02:05]} 17. e5 {[%clk 0:02:06]}  dxe5 {[%clk 0:02:03]} 18. Nxe5 {[%clk 0:02:06]}  Qb6 {[%clk 0:01:48]} 19. Nxg6 {[%clk 0:02:02]}  Rfd8 {[%clk 0:01:38]} 20. Nxe7+ {[%clk 0:01:56]}  Kf8 {[%clk 0:01:38]} 21. Bd6 {[%clk 0:01:52]}  Bxg2 {[%clk 0:01:21]} 22. Nc8+ {[%clk 0:01:48]}  Rxd6 {[%clk 0:01:20]} 23. Nxb6 {[%clk 0:01:48]}  Rxd1 {[%clk 0:01:20]} 24. Raxd1 {[%clk 0:01:48]} 1-0


[Site "https://www.chess.com"]

[Event "Titled Tuesday Blitz January 11 2022"]
[White "Sarana, Alexey"]
[Black "Yoo, Christopher Woojin"]
[WhiteFideId "24133795"]
[BlackFideId "30909694"]
[WhiteElo "2665"]
[BlackElo "2105"]
[Result "1-0"]
[Round "07"]
[TimeControl "180+1"]
[Date "2022.01.11"]
[WhiteClock "0:00:47"]
[BlackClock "0:00:02"]

1. d4 {[%clk 0:03:00]}  Nf6 {[%clk 0:02:51]} 2. c4 {[%clk 0:03:01]}  e6 {[%clk 0:02:51]} 3. Nc3 {[%clk 0:03:02]}  d5 {[%clk 0:02:50]} 4. cxd5 {[%clk 0:03:01]}  Nxd5 {[%clk 0:02:50]} 5. e4 {[%clk 0:03:00]}  Nxc3 {[%clk 0:02:51]} 6. bxc3 {[%clk 0:03:01]}  c5 {[%clk 0:02:51]} 7. Rb1 {[%clk 0:03:02]}  Be7 {[%clk 0:02:48]} 8. Nf3 {[%clk 0:03:01]}  O-O {[%clk 0:02:49]} 9. h4 {[%clk 0:03:02]}  Nc6 {[%clk 0:02:35]} 10. h5 {[%clk 0:03:00]}  cxd4 {[%clk 0:02:27]} 11. cxd4 {[%clk 0:03:01]}  h6 {[%clk 0:02:22]} 12. Bb5 {[%clk 0:02:59]}  Bd7 {[%clk 0:02:17]} 13. O-O {[%clk 0:02:49]}  Rc8 {[%clk 0:02:16]} 14. Bf4 {[%clk 0:02:34]}  a6 {[%clk 0:01:53]} 15. Ba4 {[%clk 0:02:33]}  b5 {[%clk 0:01:52]} 16. Bc2 {[%clk 0:02:33]}  Nb4 {[%clk 0:01:23]} 17. Bb3 {[%clk 0:02:33]}  Qb6 {[%clk 0:01:12]} 18. Qd2 {[%clk 0:02:25]}  a5 {[%clk 0:01:02]} 19. a3 {[%clk 0:02:23]}  a4 {[%clk 0:01:00]} 20. axb4 {[%clk 0:02:22]}  axb3 {[%clk 0:01:00]} 21. Rxb3 {[%clk 0:02:23]}  Rfd8 {[%clk 0:00:51]} 22. Bxh6 {[%clk 0:01:52]}  gxh6 {[%clk 0:00:42]} 23. Qxh6 {[%clk 0:01:52]}  Bf8 {[%clk 0:00:37]} 24. Qg5+ {[%clk 0:01:53]}  Kh7 {[%clk 0:00:28]} 25. Ne5 {[%clk 0:01:53]}  Bh6 {[%clk 0:00:18]} 26. Qf6 {[%clk 0:01:52]}  Bg7 {[%clk 0:00:18]} 27. Qxf7 {[%clk 0:00:54]}  Be8 {[%clk 0:00:17]} 28. Qe7 {[%clk 0:00:55]}  Qd6 {[%clk 0:00:10]} 29. Qg5 {[%clk 0:00:47]}  Qxd4 {[%clk 0:00:09]} 30. Ng4 {[%clk 0:00:48]}  Qxe4 {[%clk 0:00:03]} 31. h6 {[%clk 0:00:47]}  Bh8 {[%clk 0:00:03]} 32. Qe7+ {[%clk 0:00:46]}  Kg6 {[%clk 0:00:02]} 33. Rg3 {[%clk 0:00:47]} 1-0


[Site "https://www.chess.com"]

[Event "Titled Tuesday Blitz January 11 2022"]
[White "Shapkin, Anatoliy"]
[Black "Lenderman, Aleksandr"]
[WhiteFideId "34108332"]
[BlackFideId "2021285"]
[WhiteElo "2223"]
[BlackElo "2651"]
[Result "0-1"]
[Round "07"]
[TimeControl "180+1"]
[Date "2022.01.11"]
[WhiteClock "0:01:21"]
[BlackClock "0:01:42"]

1. d4 {[%clk 0:03:00]}  e6 {[%clk 0:02:59]} 2. c4 {[%clk 0:03:00]}  b6 {[%clk 0:02:59]} 3. Nf3 {[%clk 0:02:56]}  Bb7 {[%clk 0:02:59]} 4. g3 {[%clk 0:02:56]}  Bb4+ {[%clk 0:02:58]} 5. Bd2 {[%clk 0:02:56]}  Bxf3 {[%clk 0:02:58]} 6. exf3 {[%clk 0:02:57]}  Bxd2+ {[%clk 0:02:59]} 7. Qxd2 {[%clk 0:02:57]}  Nf6 {[%clk 0:02:58]} 8. Bg2 {[%clk 0:02:55]}  d5 {[%clk 0:02:55]} 9. O-O {[%clk 0:02:53]}  O-O {[%clk 0:02:55]} 10. cxd5 {[%clk 0:02:46]}  Nxd5 {[%clk 0:02:54]} 11. Nc3 {[%clk 0:02:46]}  Nc6 {[%clk 0:02:55]} 12. Nxd5 {[%clk 0:02:42]}  Qxd5 {[%clk 0:02:49]} 13. f4 {[%clk 0:02:41]}  Qd6 {[%clk 0:02:50]} 14. Rfd1 {[%clk 0:02:18]}  Rad8 {[%clk 0:02:49]} 15. Bxc6 {[%clk 0:02:15]}  Qxc6 {[%clk 0:02:49]} 16. Rac1 {[%clk 0:02:16]}  Qb7 {[%clk 0:02:44]} 17. Rc4 {[%clk 0:02:14]}  Rd7 {[%clk 0:02:41]} 18. Rdc1 {[%clk 0:02:13]}  Rfd8 {[%clk 0:02:40]} 19. Qc3 {[%clk 0:02:12]}  c5 {[%clk 0:02:37]} 20. Rd1 {[%clk 0:02:04]}  g6 {[%clk 0:02:28]} 21. b4 {[%clk 0:02:04]}  cxb4 {[%clk 0:02:16]} 22. Qxb4 {[%clk 0:02:05]}  Qf3 {[%clk 0:02:12]} 23. Rdc1 {[%clk 0:02:03]}  h5 {[%clk 0:02:11]} 24. h4 {[%clk 0:01:54]}  Kg7 {[%clk 0:02:09]} 25. a4 {[%clk 0:01:53]}  Qd3 {[%clk 0:02:05]} 26. a5 {[%clk 0:01:47]}  bxa5 {[%clk 0:01:53]} 27. Qxa5 {[%clk 0:01:47]}  Rxd4 {[%clk 0:01:53]} 28. Qe5+ {[%clk 0:01:47]}  Kg8 {[%clk 0:01:49]} 29. Rc7 {[%clk 0:01:37]}  Qf3 {[%clk 0:01:46]} 30. Rc8 {[%clk 0:01:26]}  Rd1+ {[%clk 0:01:43]} 31. Kh2 {[%clk 0:01:21]}  Qh1# {[%clk 0:01:42]} 0-1


[Site "https://www.chess.com"]

[Event "Titled Tuesday Blitz January 11 2022"]
[White "Sjugirov, Sanan"]
[Black "Taboas Rodriguez, Daniel"]
[WhiteFideId "4189302"]
[BlackFideId "2208466"]
[WhiteElo "2602"]
[BlackElo "2429"]
[Result "1-0"]
[Round "07"]
[TimeControl "180+1"]
[Date "2022.01.11"]
[WhiteClock "0:00:08"]
[BlackClock "0:00:17"]

1. e4 {[%clk 0:03:00]}  e6 {[%clk 0:02:59]} 2. d4 {[%clk 0:03:00]}  d5 {[%clk 0:03:00]} 3. Nd2 {[%clk 0:03:00]}  Nc6 {[%clk 0:03:00]} 4. Ngf3 {[%clk 0:03:00]}  Nf6 {[%clk 0:03:00]} 5. e5 {[%clk 0:03:00]}  Ne4 {[%clk 0:03:01]} 6. Bd3 {[%clk 0:02:51]}  Nxd2 {[%clk 0:03:01]} 7. Bxd2 {[%clk 0:02:51]}  Nb4 {[%clk 0:03:02]} 8. Be2 {[%clk 0:02:47]}  c5 {[%clk 0:03:02]} 9. c3 {[%clk 0:02:38]}  Nc6 {[%clk 0:03:03]} 10. O-O {[%clk 0:02:14]}  Bd7 {[%clk 0:03:01]} 11. a3 {[%clk 0:02:03]}  c4 {[%clk 0:02:47]} 12. Ng5 {[%clk 0:01:57]}  Be7 {[%clk 0:02:45]} 13. f4 {[%clk 0:01:56]}  h6 {[%clk 0:02:43]} 14. Nf3 {[%clk 0:01:54]}  O-O {[%clk 0:02:41]} 15. Qe1 {[%clk 0:01:49]}  f5 {[%clk 0:02:39]} 16. exf6 {[%clk 0:01:47]}  Bxf6 {[%clk 0:02:38]} 17. Bd1 {[%clk 0:01:46]}  Qe7 {[%clk 0:02:32]} 18. Bc2 {[%clk 0:01:45]}  b5 {[%clk 0:02:26]} 19. g4 {[%clk 0:01:44]}  Qf7 {[%clk 0:01:56]} 20. Qg3 {[%clk 0:01:41]}  g6 {[%clk 0:01:46]} 21. g5 {[%clk 0:01:29]}  Bg7 {[%clk 0:01:36]} 22. Ne5 {[%clk 0:01:21]}  Bxe5 {[%clk 0:01:21]} 23. fxe5 {[%clk 0:01:22]}  Qh7 {[%clk 0:01:19]} 24. gxh6 {[%clk 0:01:19]}  Ne7 {[%clk 0:01:19]} 25. Rf6 {[%clk 0:01:00]}  Kh8 {[%clk 0:01:11]} 26. Raf1 {[%clk 0:00:57]}  Nf5 {[%clk 0:01:02]} 27. Qg5 {[%clk 0:00:57]}  Rg8 {[%clk 0:00:57]} 28. Kh1 {[%clk 0:00:52]}  Rae8 {[%clk 0:00:56]} 29. Qg4 {[%clk 0:00:33]}  Re7 {[%clk 0:00:41]} 30. Bg5 {[%clk 0:00:32]}  Nxh6 {[%clk 0:00:37]} 31. Qf4 {[%clk 0:00:13]}  Nf5 {[%clk 0:00:21]} 32. Bxf5 {[%clk 0:00:13]}  gxf5 {[%clk 0:00:20]} 33. Rh6 {[%clk 0:00:12]}  Rf7 {[%clk 0:00:17]} 34. Bf6+ {[%clk 0:00:10]}  Rxf6 {[%clk 0:00:17]} 35. exf6 {[%clk 0:00:08]} 1-0


[Site "https://www.chess.com"]

[Event "Titled Tuesday Blitz January 11 2022"]
[White "Svane, Frederik"]
[Black "Tari, Aryan"]
[WhiteFideId "12923044"]
[BlackFideId "1510045"]
[WhiteElo "2459"]
[BlackElo "2567"]
[Result "1-0"]
[Round "07"]
[TimeControl "180+1"]
[Date "2022.01.11"]
[WhiteClock "0:00:23"]
[BlackClock "0:00:01"]

1. e4 {[%clk 0:03:00]}  c6 {[%clk 0:02:43]} 2. Nf3 {[%clk 0:02:44]}  d5 {[%clk 0:02:44]} 3. exd5 {[%clk 0:02:45]}  cxd5 {[%clk 0:02:43]} 4. d4 {[%clk 0:02:46]}  Nc6 {[%clk 0:02:31]} 5. c3 {[%clk 0:02:46]}  Bg4 {[%clk 0:02:29]} 6. h3 {[%clk 0:02:47]}  Bh5 {[%clk 0:02:26]} 7. Qb3 {[%clk 0:02:47]}  Bxf3 {[%clk 0:02:24]} 8. Qxb7 {[%clk 0:02:47]}  Qc8 {[%clk 0:02:00]} 9. Qxc8+ {[%clk 0:02:41]}  Rxc8 {[%clk 0:02:01]} 10. gxf3 {[%clk 0:02:42]}  e6 {[%clk 0:02:02]} 11. Be3 {[%clk 0:02:35]}  Bd6 {[%clk 0:01:54]} 12. Nd2 {[%clk 0:02:30]}  Nge7 {[%clk 0:01:54]} 13. Bd3 {[%clk 0:02:28]}  O-O {[%clk 0:01:53]} 14. O-O {[%clk 0:02:18]}  Ng6 {[%clk 0:01:43]} 15. Bxg6 {[%clk 0:02:13]}  hxg6 {[%clk 0:01:43]} 16. Kg2 {[%clk 0:02:07]}  f6 {[%clk 0:01:42]} 17. f4 {[%clk 0:01:56]}  Ne7 {[%clk 0:01:40]} 18. Rac1 {[%clk 0:01:50]}  Nf5 {[%clk 0:01:32]} 19. Nf3 {[%clk 0:01:32]}  Kf7 {[%clk 0:01:31]} 20. Rfe1 {[%clk 0:01:31]}  Rh8 {[%clk 0:01:19]} 21. b3 {[%clk 0:01:26]}  Nh4+ {[%clk 0:01:04]} 22. Nxh4 {[%clk 0:01:22]}  Rxh4 {[%clk 0:01:05]} 23. c4 {[%clk 0:01:23]}  Rch8 {[%clk 0:00:57]} 24. cxd5 {[%clk 0:01:12]}  exd5 {[%clk 0:00:58]} 25. Rc6 {[%clk 0:01:10]}  Bb8 {[%clk 0:00:58]} 26. Rc5 {[%clk 0:00:55]}  R8h5 {[%clk 0:00:57]} 27. Rc8 {[%clk 0:00:54]}  Bd6 {[%clk 0:00:47]} 28. Rd8 {[%clk 0:00:51]}  Ke7 {[%clk 0:00:37]} 29. Ra8 {[%clk 0:00:51]}  Rxh3 {[%clk 0:00:37]} 30. Rxa7+ {[%clk 0:00:48]}  Ke6 {[%clk 0:00:37]} 31. Ra6 {[%clk 0:00:48]}  Kd7 {[%clk 0:00:32]} 32. b4 {[%clk 0:00:42]}  Rh2+ {[%clk 0:00:09]} 33. Kf3 {[%clk 0:00:42]}  R5h3+ {[%clk 0:00:06]} 34. Ke2 {[%clk 0:00:43]}  g5 {[%clk 0:00:07]} 35. fxg5 {[%clk 0:00:39]}  f5 {[%clk 0:00:07]} 36. b5 {[%clk 0:00:36]}  f4 {[%clk 0:00:08]} 37. Rxd6+ {[%clk 0:00:36]}  Kxd6 {[%clk 0:00:03]} 38. Bxf4+ {[%clk 0:00:36]}  Kd7 {[%clk 0:00:04]} 39. Bxh2 {[%clk 0:00:37]}  Rxh2 {[%clk 0:00:05]} 40. Rb1 {[%clk 0:00:33]}  Rh4 {[%clk 0:00:04]} 41. b6 {[%clk 0:00:32]}  Kc8 {[%clk 0:00:05]} 42. b7+ {[%clk 0:00:33]}  Kb8 {[%clk 0:00:05]} 43. Rb4 {[%clk 0:00:32]}  Rg4 {[%clk 0:00:06]} 44. a4 {[%clk 0:00:31]}  Rxg5 {[%clk 0:00:06]} 45. a5 {[%clk 0:00:31]}  Rg6 {[%clk 0:00:07]} 46. Rb5 {[%clk 0:00:28]}  Rf6 {[%clk 0:00:05]} 47. Ke3 {[%clk 0:00:26]}  g6 {[%clk 0:00:04]} 48. f4 {[%clk 0:00:25]}  Re6+ {[%clk 0:00:02]} 49. Kf3 {[%clk 0:00:25]}  Rc6 {[%clk 0:00:02]} 50. Kg4 {[%clk 0:00:25]}  Rc4 {[%clk 0:00:03]} 51. a6 {[%clk 0:00:23]}  Ra4 {[%clk 0:00:01]} 52. Rb6 {[%clk 0:00:23]} 1-0


[Site "https://www.chess.com"]